bitfinex/quotes_ETHUSD_20240722
["timestamp","ask_amount","ask_price","bid_price","bid_amount"]
[1721613583612,5.19922,3533.3,3533.2,0.03549187]
[1721613583826,5.19922,3533.3,3532.7,2.83068]
[1721613583827,5.79110022,3533.3,3532.7,2.83068]
[1721613584010,5.79110022,3533.3,3533.2,0.03549187]
[1721613584219,5.79110022,3533.3,3532.7,2.83068]
[1721613584516,5.79110022,3533.3,3532.8,0.03550903]
[1721613588116,2.83035,3533.2,3532.8,0.03550903]
[1721613588288,0.59188022,3533.0,3532.8,0.03550903]
[1721613588496,0.59188022,3533.1,3532.2,5.31419]
[1721613589114,0.59188022,3533.1,3532.3,0.03554295]
[1721613589690,0.59188022,3533.1,3532.5,2.83085]
[1721613590091,0.59188022,3533.1,3532.6,0.03553613]
[1721613591401,2.83045,3533.0,3532.6,0.03553613]
[1721613591613,2.83062,3532.8,3532.6,0.03553613]
[1721613591937,2.83062,3532.8,3532.7,0.03555963]
[1721613592137,0.04070323,3532.9,3532.7,0.03555963]
[1721613592296,3.42238022,3533.0,3532.2,5.31419]
[1721613592493,0.04070323,3532.9,3532.2,6.128733]
[1721613592697,3.42238022,3533.0,3532.3,0.03556873]
[1721613593002,2.83054,3532.9,3532.3,0.03556873]
[1721613593204,3.42242022,3532.9,3532.3,0.03556873]
[1721613593417,2.4745,3532.8,3532.3,0.03556873]
[1721613593631,2.4745,3532.8,3532.2,2.83109]
[1721613593795,5.30512,3532.8,3532.2,0.795113]
[1721613593997,0.04070323,3532.7,3532.3,0.03556873]
[1721613594395,0.04070323,3532.7,3532.1,2.83117]
[1721613594396,2.83069,3532.7,3531.9,2.8313]
[1721613594603,3.42257022,3532.7,3531.9,2.8313]
[1721613594937,2.83083,3532.6,3531.9,2.8313]
[1721613595238,2.83083,3532.6,3532.0,0.70585456]
[1721613599500,0.04070323,3532.5,3532.0,0.70585456]
[1721613599820,2.83083,3532.6,3532.0,0.70585456]
[1721613600236,2.87153323,3532.6,3532.0,0.70585456]
[1721613600597,2.87153323,3532.6,3532.0,0.03557556]
[1721613600910,2.4205,3532.5,3532.0,0.03557556]
[1721613601100,2.83094,3532.4,3532.0,0.03557556]
[1721613601536,2.83104,3532.3,3532.0,0.03557556]
[1721613601923,0.59188022,3532.4,3532.0,0.03557556]
[1721613602235,5.84323022,3532.5,3532.0,0.03557556]
[1721613602438,0.59188022,3532.5,3532.0,0.03557556]
[1721613602742,0.59188022,3532.6,3532.0,0.03557556]
[1721613602902,0.59188022,3532.6,3532.1,2.83117]
[1721613603238,0.59188022,3532.6,3532.0,2.86679556]
[1721613603540,6.42260022,3532.7,3532.0,2.86679556]
[1721613603715,8.42280771,3532.7,3532.0,2.86679556]
[1721613604040,7.83092749,3532.7,3532.0,2.86679556]
[1721613604202,5.59208771,3532.7,3532.1,2.83117]
[1721613604397,5.00020749,3532.7,3532.1,2.83117]
[1721613604603,5.59208771,3532.7,3532.1,2.83117]
[1721613604839,0.59188022,3532.8,3532.1,1.09662189]
[1721613605037,7.41169676,3533.0,3532.5,2.83079]
[1721613605264,5.82825022,3533.1,3532.4,2.4971]
[1721613606354,0.59188022,3533.0,3532.4,2.4971]
[1721613606575,3.59188022,3533.0,3532.4,2.4971]
[1721613606744,3.59188022,3533.0,3532.4,5.32802]
[1721613607926,3.59188022,3533.0,3532.4,2.83092]
[1721613608326,3.59188022,3533.0,3532.5,2.83085]
[1721613608537,2.406,3533.1,3532.6,2.83076]
[1721613609150,3.0,3533.2,3532.6,2.83076]
[1721613609550,5.8303,3533.2,3532.6,2.83076]
[1721613611257,3.59188022,3533.2,3532.6,2.83076]
[1721613611460,10.65052472,3533.4,3532.6,2.83076]
[1721613611461,3.59188022,3533.3,3532.6,2.83076]
[1721613611772,4.07711855,3533.3,3532.3,2.83101]
[1721613611973,3.42219022,3533.2,3532.5,2.83079]
[1721613612337,2.83039,3533.1,3532.5,2.83079]
[1721613612645,2.83054,3532.9,3532.1,2.83116]
[1721613612827,0.04070323,3533.0,3532.1,2.83117]
[1721613613030,5.89895022,3533.1,3532.1,2.83117]
[1721613613231,5.89895022,3533.1,3532.3,2.83098]
[1721613613232,3.42233022,3533.0,3532.3,2.83098]
[1721613613432,0.59188022,3533.0,3532.4,2.83091]
[1721613614152,8.06703728,3533.1,3532.4,2.83091]
[1721613614482,0.63258345,3533.0,3532.2,2.83109]
[1721613614665,2.83083,3532.6,3532.0,0.03557556]
[1721613614851,0.566148,3532.5,3532.0,0.03557556]
[1721613615190,3.397018,3532.5,3532.0,0.03557556]
[1721613615735,5.29191,3532.3,3532.0,0.03557556]
[1721613617170,0.04070323,3532.2,3532.1,0.03565548]
[1721613617348,0.93215014,3532.2,3531.6,2.8315]
[1721613617679,5.29191,3532.3,3531.7,0.03574518]
[1721613618767,5.29191,3532.3,3531.7,2.86723518]
[1721613618941,3.98890822,3532.5,3531.8,2.83141]
[1721613619137,0.59188022,3532.5,3532.0,2.83124]
[1721613619344,0.59188022,3532.6,3532.1,0.03573607]
[1721613620847,3.42275022,3532.5,3532.1,0.03573607]
[1721613621052,2.83087,3532.5,3532.1,0.03573607]
[1721613621389,2.65095042,3532.6,3532.2,0.0357338]
[1721613621733,2.0590702,3532.6,3532.0,2.83124]
[1721613621935,2.0590702,3532.6,3532.1,0.03573607]
[1721613622338,0.59188022,3532.7,3532.2,2.3199]
[1721613622682,0.59188022,3532.7,3532.1,2.86683607]
[1721613622683,7.41169676,3532.8,3532.7,2.83069]
[1721613622836,7.41169676,3533.2,3533.0,2.83043]
[1721613623268,7.41169676,3533.2,3533.1,0.03577458]
[1721613626049,0.59188022,3533.7,3533.1,0.03577458]
[1721613626256,3.59188022,3533.7,3533.1,2.86612458]
[1721613626438,3.59188022,3533.7,3532.9,2.8305]
[1721613626439,5.89551871,3533.7,3532.9,2.8305]
[1721613626640,0.59188022,3533.6,3532.9,2.8305]
[1721613626867,0.59188022,3533.5,3533.0,0.03571722]
[1721613627259,0.59188022,3533.5,3533.0,2.86615722]
[1721613627464,0.59188022,3533.6,3533.1,2.83035]
[1721613627886,3.59188022,3533.7,3533.2,2.86599267]
[1721613628098,0.59188022,3533.9,3533.3,3.4337]
[1721613628254,7.41169676,3534.1,3533.6,2.82997]
[1721613628587,7.41169676,3534.1,3533.3,2.3937]
[1721613628588,7.41169676,3534.1,3533.7,0.03561267]
[1721613628992,7.41169676,3534.1,3533.2,2.83028]
[1721613629197,3.71025796,3533.9,3533.8,0.0356104]
[1721613629490,2.8299,3533.7,3532.9,2.83047]
[1721613629654,0.59073098,3533.7,3533.1,2.83036]
[1721613629851,0.59073098,3533.9,3533.3,2.83021]
[1721613630055,0.59073098,3533.9,3533.0,2.86599859]
[1721613630056,6.42046098,3533.9,3533.2,0.03562404]
[1721613630366,6.5080966,3533.9,3533.3,0.03562177]
[1721613630549,3.59073098,3533.9,3533.1,2.83036]
[1721613630754,3.59073098,3533.9,3533.3,2.83018]
[1721613630755,3.0,3533.9,3533.3,2.83018]
[1721613631368,5.3921,3534.0,3533.3,2.83018]
[1721613631967,5.98283098,3534.0,3533.3,2.83018]
[1721613632183,11.7298666,3534.0,3533.1,2.83036]
[1721613632363,11.7298666,3534.0,3533.2,0.03561599]
[1721613632694,11.7298666,3534.0,3533.3,2.83021]
[1721613633103,11.7298666,3534.0,3533.4,0.03561144]
[1721613633603,11.13913562,3534.0,3533.4,0.03561144]
[1721613633956,8.30946562,3534.0,3533.4,0.03561144]
[1721613634802,8.30946562,3534.0,3533.4,2.86572144]
[1721613634985,3.0,3534.0,3533.4,2.86572144]
[1721613635297,7.41169676,3534.1,3533.7,2.82988]
[1721613635590,7.41169676,3534.1,3533.8,0.03421637]
[1721613636015,7.41169676,3534.1,3533.7,2.82983]
[1721613636157,7.41169676,3534.1,3533.9,0.03421409]
[1721613636357,2.4296,3534.3,3533.7,2.82983]
[1721613636597,2.4296,3534.3,3533.8,0.03421637]
[1721613636760,5.4296,3534.3,3533.8,0.03421637]
[1721613639488,3.41990098,3534.6,3533.8,0.03421637]
[1721613639489,5.82925,3534.5,3533.8,0.03421637]
[1721613639786,8.74661562,3534.5,3533.7,2.82983]
[1721613640098,8.74661562,3534.5,3533.8,0.03421637]
[1721613640383,5.91736562,3534.5,3533.7,2.4643]
[1721613640597,3.0,3534.5,3533.8,0.03417779]
[1721613641104,3.0,3534.5,3533.8,2.82975]
[1721613641387,3.0,3534.5,3533.9,0.03417551]
[1721613641688,3.0,3534.5,3533.8,2.82975]
[1721613642055,2.2683,3534.6,3533.7,2.4643]
[1721613642361,2.2683,3534.6,3534.0,2.82958]
[1721613642568,2.2683,3534.6,3534.1,0.03417097]
[1721613642795,2.2683,3534.6,3534.1,2.86374097]
[1721613643099,7.41169676,3534.7,3534.1,2.86374097]
[1721613643308,7.41169676,3534.7,3534.2,2.82949]
[1721613643491,9.24685144,3534.7,3534.2,2.82949]
[1721613643842,9.24685144,3534.7,3534.3,0.03405228]
[1721613644132,9.24685144,3534.7,3534.2,2.82949]
[1721613644339,3.0,3535.0,3534.2,5.23859]
[1721613644340,0.29586306,3535.0,3534.2,5.23859]
[1721613644497,0.29586306,3535.0,3534.3,0.03405228]
[1721613644878,7.41169676,3535.1,3534.2,5.23859]
[1721613645498,7.41169676,3535.1,3534.5,2.82924]
[1721613645815,7.41169676,3535.1,3534.6,0.03398118]
[1721613647930,8.66816644,3535.1,3534.6,0.03398118]
[1721613648092,2.829,3534.9,3534.6,0.03398118]
[1721613648292,2.829,3534.9,3534.0,2.82961]
[1721613648505,2.829,3534.9,3534.7,0.03394517]
[1721613648827,2.829,3534.9,3534.0,2.82961]
[1721613649184,2.829,3534.9,3534.1,0.0339588]
[1721613649382,1.43259464,3534.8,3534.1,0.0339588]
[1721613649619,1.43259464,3534.8,3533.9,2.333]
[1721613649948,4.26161464,3534.8,3534.1,2.82957]
[1721613650083,4.26161464,3534.8,3534.2,0.03395653]
[1721613650617,2.82926,3534.5,3534.2,0.03395653]
[1721613650820,2.86996323,3534.5,3534.2,0.03395653]
[1721613650980,2.86996323,3534.5,3533.7,2.82985]
[1721613651183,2.86996323,3534.5,3533.8,0.03396563]
[1721613651831,0.04070323,3534.4,3533.8,0.03396563]
[1721613652126,2.82962,3534.1,3533.1,2.83029]
[1721613652283,2.82962,3534.1,3533.2,0.03397927]
[1721613652483,10.24102676,3534.4,3533.4,2.83012]
[1721613652484,2.82945,3534.3,3533.4,2.83012]
[1721613652690,2.82949,3534.2,3533.5,2.83005]
[1721613652904,2.82949,3534.2,3533.6,0.03397017]
[1721613653599,2.82958,3534.1,3533.6,0.03397017]
[1721613653812,2.82983,3533.8,3533.0,2.83037]
[1721613654011,2.82983,3533.8,3533.7,0.0339679]
[1721613654214,3.94240132,3533.8,3533.1,2.83035]
[1721613654418,2.82983,3533.8,3533.1,2.83035]
[1721613654592,2.82983,3533.8,3533.2,0.0340098]
[1721613655488,5.4256,3534.0,3533.2,0.0340098]
[1721613655791,2.82958,3534.1,3533.4,2.83013]
[1721613655985,3.0,3534.0,3533.5,0.03400298]
[1721613656802,5.82965,3534.0,3533.5,0.03400298]
[1721613657026,0.91068855,3533.9,3533.2,2.83025]
[1721613657189,0.91068855,3533.9,3533.6,0.03400071]
[1721613657190,0.04070323,3533.9,3533.6,0.03400071]
[1721613657498,0.04070323,3533.9,3533.2,2.83025]
[1721613657698,0.04070323,3533.9,3533.7,0.03399843]
[1721613658027,2.87043323,3533.9,3533.8,0.03399616]
[1721613658194,5.70016323,3533.9,3533.8,0.03399616]
[1721613658395,5.70016323,3533.9,3532.7,2.83062]
[1721613658396,2.83008,3533.5,3532.7,2.83062]
[1721613658618,2.83008,3533.5,3532.8,0.0340189]
[1721613658817,2.2531,3533.5,3532.8,0.0340189]
[1721613659020,2.83053,3532.9,3532.8,0.0340189]
[1721613659209,2.83053,3532.9,3532.0,5.23955]
[1721613659210,2.83063,3532.8,3532.0,5.23955]
[1721613659410,2.83054,3532.9,3532.1,0.8400008]
[1721613659803,10.24206676,3533.1,3532.1,0.8400008]
[1721613660230,10.24206676,3533.1,3532.3,2.83095]
[1721613660407,10.24206676,3533.1,3532.1,0.8400008]
[1721613660408,7.41169676,3533.1,3532.6,2.83075]
[1721613660597,7.41169676,3533.1,3532.7,2.86358115]
[1721613660794,7.41169676,3533.1,3532.7,0.03289115]
[1721613660995,7.41169676,3533.1,3532.8,2.2745]
[1721613661195,3.0,3533.5,3532.8,2.2745]
[1721613661196,3.0,3533.5,3532.9,0.0328866]
[1721613661450,3.0,3533.5,3532.8,2.2745]
[1721613661596,3.0,3533.5,3532.8,2.785012]
[1721613661827,3.0,3533.5,3533.1,2.83037]
[1721613662232,3.0,3533.5,3533.2,0.03287978]
[1721613663102,7.41169676,3533.6,3533.2,0.03287978]
[1721613663723,7.41169676,3533.6,3533.0,2.83045]
[1721613664035,7.41169676,3533.6,3533.1,0.03288205]
[1721613665117,5.66058,3533.2,3533.1,0.03288205]
[1721613665531,2.83029,3533.2,3532.2,2.83107]
[1721613665824,2.83053,3532.9,3532.3,0.03213236]
[1721613665994,2.83064,3532.8,3532.1,2.83116]
[1721613666198,2.83064,3532.8,3532.2,0.03213785]
[1721613666466,2.83046,3533.0,3532.2,0.03213785]
[1721613666749,2.83046,3533.0,3532.2,0.32413857]
[1721613666901,5.66097,3533.0,3532.3,2.831]
[1721613667100,2.83054,3532.9,3532.3,0.03180224]
[1721613667801,2.83054,3532.9,3532.2,2.83109]
[1721613668108,2.83054,3532.9,3532.3,0.03180224]
[1721613669297,2.83037,3533.1,3532.3,3.14904146]
[1721613669737,2.83048,3533.0,3532.3,3.14904146]
[1721613670400,7.41169676,3533.3,3532.3,0.31809146]
[1721613670604,7.41169676,3533.3,3532.3,0.03180224]
[1721613670903,7.41169676,3533.3,3531.9,2.83127]
[1721613671111,7.41169676,3533.3,3532.8,2.83054]
[1721613671300,2.83001,3533.6,3532.8,2.83054]
[1721613671528,8.00242774,3533.7,3532.9,0.0318513]
[1721613671529,5.83006,3533.5,3532.9,0.0318513]
[1721613671740,5.83006,3533.5,3532.8,2.83054]
[1721613671916,5.83006,3533.5,3532.6,2.83077]
[1721613672121,5.83006,3533.5,3532.7,2.83066]
[1721613672331,5.83006,3533.5,3532.7,2.86249173]
[1721613675685,2.83021,3533.3,3532.7,0.03183173]
[1721613675855,2.83038,3533.1,3532.7,0.03183173]
[1721613676256,2.83038,3533.1,3532.4,2.83087]
[1721613676484,2.83046,3533.0,3532.3,2.831]
[1721613676794,0.52767632,3533.0,3531.9,2.3765]
[1721613677005,2.83085,3532.5,3531.6,2.83157]
[1721613677210,2.4316,3532.8,3531.3,5.2856]
[1721613677211,2.83126,3532.0,3531.7,0.03184807]
[1721613677491,2.87182323,3532.2,3531.3,5.67179]
[1721613677794,2.83112,3532.2,3531.8,0.0319069]
[1721613677949,0.57028432,3532.1,3531.3,5.67179]
[1721613678150,2.82908216,3532.2,3531.4,0.03085723]
[1721613678757,2.82908216,3532.2,3531.4,2.86258723]
[1721613679384,2.87188323,3532.1,3531.4,2.86258723]
[1721613681091,2.83118,3532.1,3531.4,2.86258723]
[1721613683597,2.83118,3532.1,3531.4,0.03085723]
[1721613684387,2.83118,3532.1,3531.4,0.88431995]
[1721613687379,2.83125,3532.0,3531.4,0.88431995]
[1721613688032,2.359,3531.9,3531.4,0.03085723]
[1721613688235,5.359,3531.9,3531.4,0.03085723]
[1721613688432,2.83165,3531.5,3531.4,0.03085723]
[1721613688635,2.8318,3531.4,3530.6,2.83236]
[1721613689007,2.8318,3531.4,3530.7,0.031182]
[1721613689197,2.8318,3531.4,3530.6,2.83236]
[1721613689396,2.8318,3531.4,3530.6,3.632678]
[1721613689597,2.8318,3531.4,3530.7,0.031182]
[1721613690512,2.83182,3531.3,3530.7,0.031182]
[1721613691936,7.41169676,3531.7,3530.7,0.031182]
[1721613691937,2.87265323,3531.2,3530.7,0.031182]
[1721613692105,2.83179,3531.4,3530.7,0.031182]
[1721613692312,2.83179,3531.4,3530.7,2.863412]
[1721613692525,2.83165,3531.5,3530.7,2.863412]
[1721613693320,2.8316,3531.6,3530.9,2.83212]
[1721613693537,5.8316,3531.6,3530.9,2.83212]
[1721613693716,2.83171,3531.5,3530.7,2.83229]
[1721613694098,2.83171,3531.5,3530.8,2.86349433]
[1721613696036,3.0,3531.6,3530.8,2.86349433]
[1721613696240,3.0,3531.6,3530.8,3.14984376]
[1721613696543,5.83159,3531.6,3530.9,2.8321]
[1721613697046,5.83159,3531.6,3530.7,2.83229]
[1721613697047,3.0,3531.6,3531.0,2.83203]
[1721613697745,3.0,3531.6,3531.1,2.83195]
[1721613697908,3.0,3531.6,3530.9,2.8321]
[1721613698607,3.0,3531.6,3531.0,0.03125724]
[1721613698943,5.83158,3531.6,3531.0,0.03125724]
[1721613699759,2.83174,3531.4,3531.0,0.03125724]
[1721613700040,2.83174,3531.4,3530.7,2.83224]
[1721613700241,2.83174,3531.4,3531.1,0.03133706]
[1721613700442,2.83174,3531.4,3530.7,2.83224]
[1721613700649,7.67498968,3531.6,3530.8,2.83221]
[1721613700804,5.83162,3531.6,3530.8,2.86355872]
[1721613701133,5.83162,3531.6,3530.8,2.83221]
[1721613701333,5.83162,3531.6,3530.8,3.398667]
[1721613703053,3.0,3531.6,3530.9,2.83212]
[1721613703351,3.0,3531.6,3531.0,0.03134738]
[1721613703943,5.83159,3531.6,3530.9,2.83212]
[1721613704704,3.0,3531.6,3531.0,2.83203]
[1721613704907,7.41169676,3531.7,3531.2,2.83189]
[1721613705204,7.41169676,3531.7,3531.3,0.03134216]
[1721613705648,7.41169676,3531.7,3531.1,2.83194]
[1721613705862,7.41169676,3531.7,3531.2,0.03134444]
[1721613706225,7.41169676,3531.7,3530.9,2.83211]
[1721613706527,2.83159,3531.6,3530.9,2.83211]
[1721613706719,2.83159,3531.6,3531.0,0.0313329]
[1721613706920,7.41169676,3531.7,3531.0,2.8633829]
[1721613707331,10.24320676,3531.7,3531.0,2.8633829]
[1721613708163,10.24319676,3531.7,3531.0,0.0313329]
[1721613708320,10.24319676,3531.7,3530.6,2.83236]
[1721613708519,2.83181,3531.4,3531.1,0.03133384]
[1721613708758,5.30261,3531.4,3530.6,3.452776]
[1721613708986,2.87251323,3531.3,3531.2,0.03133156]
[1721613709266,2.87251323,3531.3,3530.5,2.83239]
[1721613709425,2.87251323,3531.3,3530.6,2.83237]
[1721613709949,2.87251323,3531.3,3530.7,0.03134295]
[1721613714051,2.83181,3531.3,3530.7,2.86363295]
[1721613714246,2.83181,3531.3,3530.7,3.66632325]
[1721613714455,2.83181,3531.3,3530.7,0.83403325]
[1721613714761,2.8319,3531.2,3530.7,0.03134295]
[1721613715059,2.8319,3531.2,3530.5,2.83241]
[1721613715554,2.8319,3531.2,3530.6,0.03138546]
[1721613716153,5.30253,3531.4,3530.6,2.86374546]
[1721613716365,2.4708,3531.4,3530.6,2.86374546]
[1721613716525,2.83183,3531.3,3530.6,3.66645201]
[1721613717649,2.83183,3531.3,3530.6,3.63506655]
[1721613717863,2.83191,3531.2,3530.7,0.03138318]
[1721613718442,2.83191,3531.2,3530.5,2.83245]
[1721613718642,2.83191,3531.2,3530.6,0.03143697]
[1721613721084,5.66458,3530.7,3530.6,0.03143697]
[1721613721291,5.66458,3530.7,3529.5,2.83324]
[1721613721292,2.83243,3530.6,3529.5,2.83324]
[1721613721438,2.83243,3530.6,3529.4,2.4411]
[1721613721439,2.83243,3530.6,3529.8,2.83301]
[1721613721790,2.83229,3530.7,3529.8,2.83301]
[1721613721791,2.83249,3530.5,3529.9,0.02938075]
[1721613722080,2.83249,3530.5,3529.9,0.566618]
[1721613723454,3.42302098,3530.7,3529.9,3.399538]
[1721613723656,3.42302098,3530.7,3530.0,0.02833514]
[1721613723873,0.59073098,3530.7,3530.1,2.83276]
[1721613724079,2.83222,3530.8,3530.2,0.02833058]
[1721613724260,2.83222,3530.8,3530.0,2.4255]
[1721613724471,2.83222,3530.8,3530.1,0.02846006]
[1721613724644,3.42280098,3531.0,3530.3,2.83261]
[1721613724873,3.42280098,3531.0,3530.4,0.02841619]
[1721613724874,2.83207,3531.0,3530.4,0.02841619]
[1721613725046,2.83207,3531.0,3530.4,0.28610262]
[1721613725242,0.59073098,3531.1,3530.5,2.86084391]
[1721613725446,3.59073098,3531.1,3530.5,2.86084391]
[1721613726156,6.42272098,3531.1,3530.5,0.02841391]
[1721613726360,3.42279098,3531.0,3530.5,0.02841391]
[1721613726546,3.42279098,3531.0,3530.3,2.83261]
[1721613726751,0.59073098,3531.0,3530.6,0.02839875]
[1721613726976,0.59073098,3531.0,3530.4,2.83253]
[1721613727152,0.59073098,3531.0,3530.7,0.02839647]
[1721613727353,0.59073098,3531.0,3530.4,2.83253]
[1721613727574,0.59073098,3531.0,3530.8,0.02839419]
[1721613727971,0.59073098,3531.0,3530.4,2.83253]
[1721613728171,3.0,3531.1,3530.5,2.83245]
[1721613728172,0.59073098,3531.1,3530.5,2.83245]
[1721613728454,0.59073098,3531.1,3530.5,2.8608478]
[1721613728677,0.59073098,3531.0,3530.5,2.8608478]
[1721613728876,0.59073098,3531.1,3530.6,2.83237]
[1721613729219,0.59073098,3531.1,3530.7,0.02839325]
[1721613729783,0.59073098,3531.1,3530.4,3.399041]
[1721613729981,0.59073098,3531.1,3530.8,0.02839097]
[1721613730183,0.59073098,3531.1,3530.4,2.83252]
[1721613730495,0.59073098,3531.0,3530.4,3.39904]
[1721613730705,0.59073098,3531.0,3530.5,0.0283978]
[1721613731267,0.59073098,3531.1,3530.5,0.0283978]
[1721613731665,0.59073098,3531.1,3530.5,2.8608378]
[1721613732501,0.59073098,3531.0,3530.5,2.8608378]
[1721613733914,0.59073098,3530.9,3530.5,0.0283978]
[1721613734403,2.87278323,3531.0,3530.5,0.0283978]
[1721613734404,0.59073098,3530.8,3530.5,0.0283978]
[1721613734717,0.59073098,3530.8,3530.3,2.8326]
[1721613734718,0.59073098,3530.8,3530.6,0.02845186]
[1721613735075,0.59073098,3530.8,3530.3,2.8326]
[1721613735275,0.59073098,3530.9,3530.4,0.02845642]
[1721613736203,0.59073098,3530.9,3530.4,2.86098642]
[1721613737085,0.59073098,3530.9,3530.5,2.83244]
[1721613737284,0.59073098,3530.9,3530.6,0.02845186]
[1721613737806,0.59073098,3531.0,3530.6,0.02845186]
[1721613738408,0.59073098,3530.9,3530.6,0.02845186]
[1721613738598,0.59073098,3530.9,3530.4,2.83252]
[1721613738780,0.59073098,3530.9,3530.7,0.02844958]
[1721613739122,0.59073098,3530.9,3530.4,2.83252]
[1721613739271,0.59073098,3530.9,3530.8,0.0284473]
[1721613739471,0.59073098,3530.9,3530.4,2.83252]
[1721613739675,0.59073098,3530.9,3530.5,0.02845414]
[1721613741311,0.59073098,3530.8,3530.5,0.02845414]
[1721613741737,0.59073098,3530.8,3530.2,2.83266]
[1721613741738,0.59073098,3530.9,3530.2,2.83266]
[1721613741879,0.59073098,3530.9,3530.6,0.02845186]
[1721613742219,0.59073098,3530.9,3530.1,2.83276]
[1721613742389,0.59073098,3530.9,3530.7,0.02844958]
[1721613742713,0.59073098,3530.9,3530.8,0.0284473]
[1721613743020,0.59073098,3530.9,3530.4,2.83253]
[1721613743194,0.59073098,3530.9,3530.8,0.0284473]
[1721613743400,0.59073098,3530.9,3530.5,2.83245]
[1721613743620,0.59073098,3530.9,3530.8,0.0284473]
[1721613744218,0.59073098,3530.9,3530.5,2.83245]
[1721613744429,0.59073098,3530.9,3530.8,0.0284473]
[1721613744746,0.59073098,3530.9,3530.5,2.83245]
[1721613744890,0.59073098,3530.9,3530.8,0.0284473]
[1721613745093,0.59073098,3530.9,3530.5,2.83245]
[1721613745294,0.59073098,3530.9,3530.6,0.02844219]
[1721613746128,0.59073098,3530.9,3530.6,2.86081219]
[1721613747011,0.59073098,3530.9,3530.6,0.02844219]
[1721613747508,0.59073098,3530.9,3530.7,0.02843992]
[1721613747726,0.59073098,3530.9,3530.4,2.83249]
[1721613747951,0.59073098,3530.9,3530.8,0.02843764]
[1721613748111,0.59073098,3530.9,3530.4,2.83249]
[1721613748314,0.59073098,3530.9,3530.8,0.02843764]
[1721613748515,0.59073098,3530.9,3530.5,2.83244]
[1721613748738,0.59073098,3530.9,3530.8,0.02843764]
[1721613748931,0.59073098,3530.9,3530.5,2.83244]
[1721613749234,0.59073098,3530.9,3530.8,0.02843764]
[1721613749664,0.59073098,3530.9,3530.6,2.83237]
[1721613749984,0.59073098,3530.9,3530.7,0.02841254]
[1721613750775,0.59073098,3530.9,3530.7,2.86069254]
[1721613750977,3.88609647,3531.1,3530.8,2.83221]
[1721613750978,0.59073098,3531.1,3530.8,2.83221]
[1721613751269,8.58573405,3531.5,3530.8,2.86062027]
[1721613751270,0.59073098,3531.2,3530.8,2.86062027]
[1721613752555,0.59073098,3531.2,3530.8,0.88790032]
[1721613752755,0.59073098,3531.4,3531.0,2.83205]
[1721613752948,0.59073098,3531.4,3531.3,2.83181]
[1721613753192,0.59073098,3531.8,3531.5,2.83165]
[1721613753369,0.59073098,3531.9,3531.7,2.83142]
[1721613753542,0.88609647,3532.0,3531.7,2.83142]
[1721613753543,0.59073098,3532.0,3531.7,2.83142]
[1721613753743,0.59073098,3532.0,3531.8,0.02834403]
[1721613754053,0.59073098,3532.0,3531.7,2.83142]
[1721613754244,0.59073098,3532.1,3531.9,0.02834175]
[1721613754562,2.83127,3532.0,3531.2,2.3103]
[1721613754762,2.83127,3532.0,3531.0,2.83197]
[1721613754763,0.59227804,3531.8,3531.0,2.83197]
[1721613755096,0.59227804,3531.8,3531.2,2.83187]
[1721613755380,0.59227804,3531.8,3530.9,2.3305]
[1721613755381,0.59227804,3531.5,3530.9,5.16262]
[1721613755616,0.59227804,3531.5,3530.9,2.3305]
[1721613755751,0.59227804,3531.5,3530.9,5.16263]
[1721613756466,0.59227804,3531.5,3530.8,2.83218]
[1721613756879,3.42396804,3531.5,3530.8,2.83218]
[1721613757070,0.59227804,3531.4,3530.9,2.83211]
[1721613757469,0.59227804,3531.5,3530.9,2.83211]
[1721613757788,0.59227804,3531.4,3530.9,2.83211]
[1721613757990,0.59227804,3531.5,3531.0,2.83204]
[1721613758198,0.59227804,3531.6,3531.0,2.83204]
[1721613759091,0.59227804,3531.5,3531.1,0.02825053]
[1721613760291,0.59227804,3531.6,3531.1,0.02825053]
[1721613760883,0.59227804,3531.8,3531.2,2.3137]
[1721613761201,0.59227804,3531.8,3531.4,2.83173]
[1721613761504,0.59227804,3531.9,3531.5,0.02822854]
[1721613761705,0.59227804,3531.8,3531.5,0.02822854]
[1721613761906,0.59227804,3531.9,3531.5,0.02822854]
[1721613762209,3.59227804,3531.9,3531.5,0.02822854]
[1721613762416,0.59227804,3531.9,3531.5,0.02822854]
[1721613762577,0.59227804,3531.8,3531.5,0.02822854]
[1721613762780,0.59227804,3531.9,3531.5,0.02822854]
[1721613764503,0.59227804,3532.0,3531.5,0.02822854]
[1721613765020,0.59227804,3531.9,3531.5,0.02822854]
[1721613765511,1.51326669,3532.0,3531.6,0.02817315]
[1721613765713,1.51326669,3532.0,3531.3,2.83181]
[1721613765913,0.59227804,3532.0,3531.3,2.83181]
[1721613766410,3.42353804,3532.0,3531.3,2.83181]
[1721613766613,3.59227804,3531.9,3531.3,2.83181]
[1721613766977,6.42362804,3531.9,3531.2,2.83189]
[1721613767170,0.59227804,3531.8,3531.2,2.83189]
[1721613767374,0.59227804,3531.8,3531.3,0.02815745]
[1721613767573,0.59227804,3531.8,3531.2,2.83189]
[1721613768922,0.59227804,3531.9,3531.3,0.02815745]
[1721613769278,0.59227804,3531.9,3531.2,2.83189]
[1721613769614,0.59227804,3531.9,3531.3,0.02815745]
[1721613770007,0.59227804,3531.9,3531.2,2.83189]
[1721613770207,0.59227804,3531.9,3531.4,0.02815517]
[1721613770506,0.59227804,3531.9,3531.2,2.83189]
[1721613770707,3.42361804,3531.9,3531.3,0.02816711]
[1721613770919,3.42361804,3531.9,3531.2,2.83189]
[1721613771079,2.31910323,3531.8,3531.4,0.02816483]
[1721613771274,0.59227804,3531.5,3530.8,2.4273]
[1721613771476,3.45243729,3531.8,3530.9,0.02817621]
[1721613771477,0.59227804,3531.6,3530.9,0.02817621]
[1721613771699,3.42390804,3531.6,3530.9,2.86029621]
[1721613772277,2.83167,3531.5,3530.9,0.02817621]
[1721613772602,3.46465127,3531.5,3530.7,2.83223]
[1721613772913,2.83197,3531.1,3530.2,3.358516]
[1721613773127,2.83197,3531.1,3530.4,2.83247]
[1721613773575,2.83197,3531.1,3530.5,0.02818533]
[1721613773781,5.89319804,3531.3,3530.5,2.86063533]
[1721613774620,2.87260323,3531.2,3530.5,2.86063533]
[1721613774994,2.83199,3531.1,3530.5,2.86063533]
[1721613775376,2.83199,3531.1,3530.5,0.02818533]
[1721613776016,2.8319,3531.2,3530.5,2.86061533]
[1721613778310,2.83198,3531.1,3530.5,0.02818533]